lending/lending_fUSD_20251124
["ID","MTS","AMOUNT","RATE_DAILY","PERIOD"]
[394843939,1764007844776,-389.0,0.00018707,2]
[394843940,1764007844786,-389.0,0.00018749,2]
[394843941,1764007844796,-389.0,0.00018767,2]
[394843942,1764007844807,-500.0,0.00018921,2]
[394843943,1764007844817,-192.04820121,0.00019,2]
[394843944,1764007844827,-1000.0,0.00019021,2]
[394843945,1764007844837,-335.09506367,0.00019021,2]
[394843946,1764007844846,-1000.88788091,0.00019021,2]
[394843947,1764007844856,-500.53142586,0.00019021,2]
[394843948,1764007844866,-1000.0,0.00019021,2]
[394843949,1764007844875,-1000.0,0.00019021,2]
[394843950,1764007844885,-1001.76436207,0.00019021,2]
[394843951,1764007844896,-1000.0,0.00019021,2]
[394843952,1764007844906,-412.05635369,0.00019021,2]
[394843953,1764007844916,-1000.0,0.00019021,2]
[394843954,1764007844926,-1000.0,0.00019021,2]
[394843955,1764007844936,-500.0,0.00019021,2]
[394843956,1764007844946,-1000.0,0.00019021,2]
[394843957,1764007844955,-389.0,0.00019043,2]
[394843958,1764007844965,-389.0,0.00019067,2]
[394843959,1764007844974,-300.0,0.0001907,2]
[394843960,1764007844984,-389.0,0.00019148,2]
[394843961,1764007844994,-389.0,0.0001932,2]
[394843962,1764007845004,-234.0,0.00019437,2]
[394843963,1764007845014,-389.0,0.00019486,2]
[394843964,1764007845024,-419.0050136,0.00019568,2]
[394843965,1764007845034,-360.53745416,0.00019568,2]
[394843966,1764007845043,-1500.0,0.00019568,2]
[394843967,1764007845053,-1500.0,0.00019568,2]
[394843968,1764007845062,-1345.86721143,0.00019568,2]
[394843969,1764007845072,-389.0,0.00019651,2]
[394843970,1764007845248,-389.0,0.00019712,2]
[394843971,1764007845258,-420.0,0.00019725,2]
[394843972,1764007845268,-389.0,0.00019728,2]
[394843973,1764007845277,-1680.0,0.00019778,2]
[394843974,1764007845287,-1000.0,0.00019813,2]
[394843975,1764007845296,-389.0,0.00019824,2]
[394843976,1764007845305,-389.0,0.00019837,2]
[394843977,1764007845314,-389.0,0.00019866,2]
[394843978,1764007845323,-389.0,0.00019927,2]
[394843979,1764007845333,-389.0,0.00019932,2]
[394843980,1764007845342,-637.70452293,0.00020116,2]
[394843981,1764007845352,-284.23,0.00020187,2]
[394843982,1764007845361,-300.0,0.0002044,2]
[394843983,1764007845371,-2591.95955296,0.00020839,2]
[394843984,1764007845380,-500.0,0.0002133,2]
[394843985,1764007845391,-409.0,0.0002152,2]
[394843986,1764007845401,-342.98663566,0.00021595,2]
[394843987,1764007845413,-250.0,0.0002167,2]
[394843988,1764007845424,-1200.0,0.00021686,2]
[394843989,1764007845434,-7773.88,0.00021686,2]
[394843990,1764007845445,-3792.82,0.00021757,2]
[394843991,1764007845455,-1430.03,0.00021757,2]
[394843992,1764007845464,-499.99,0.00021757,2]
[394843993,1764007845476,-9999.99,0.00021757,2]
[394843994,1764007845485,-9999.99,0.00021757,2]
[394843995,1764007845495,-1675.22,0.00021757,2]
[394843997,1764007845504,-9729.71,0.00021757,2]
[394843998,1764007845514,-75829.44,0.00021757,2]
[394843999,1764007845524,-9999.99,0.00021757,2]
[394844000,1764007845534,-900.61,0.00021757,2]
[394844001,1764007845543,-9999.99,0.00021757,2]
[394844002,1764007845553,-999.99,0.00021757,2]
[394844003,1764007845563,-500.0,0.00021773,2]
[394844004,1764007845572,-502.53176586,0.00021773,2]
[394844005,1764007845581,-500.0,0.00021773,2]
[394844006,1764007845591,-500.0,0.00021773,2]
[394844008,1764007845601,-500.0,0.00021773,2]
[394844009,1764007845611,-500.0,0.00021773,2]
[394844010,1764007845622,-500.0,0.00021773,2]
[394844011,1764007845631,-500.0,0.00021773,2]
[394844012,1764007845643,-500.0,0.00021773,2]
[394844013,1764007845653,-466.79227585,0.00021773,2]
[394844014,1764007845662,-500.0,0.00021773,2]
[394844015,1764007845672,-173.69276489,0.00021773,2]
[394844017,1764007845682,-500.0,0.00021773,2]
[394844018,1764007845693,-500.96694161,0.00021773,2]
[394844019,1764007845703,-500.0,0.00021773,2]
[394844020,1764007845712,-500.0,0.00021773,2]
[394844022,1764007845722,-500.0,0.00021773,2]
[394844024,1764007845732,-500.0,0.00021773,2]
[394844026,1764007845741,-500.0,0.00021773,2]
[394844028,1764007845750,-500.0,0.00021773,2]
[394844030,1764007845760,-500.0,0.00021773,2]
[394844033,1764007845769,-500.0,0.00021773,2]
[394844036,1764007845779,-500.0,0.00021917,2]
[394844039,1764007845789,-500.0,0.00021917,2]
[394844041,1764007845798,-500.0,0.00021917,2]
[394844043,1764007845807,-1000.0,0.00022014,2]
[394844044,1764007845817,-500.0,0.000221,2]
[394844045,1764007845826,-908.0,0.00022182,2]
[394844046,1764007845836,-1192.0,0.00022182,2]
[394844047,1764007845845,-502.92078827,0.00022321,2]
[394844049,1764007845855,-500.0,0.00022321,2]
[394844051,1764007845864,-1000.0,0.00022321,2]
[394844054,1764007845873,-1000.0,0.00022321,2]
[394844056,1764007845882,-1000.0,0.00022321,2]
[394844059,1764007845894,-745.44865078,0.00022321,2]
[394844061,1764007845903,-501.8690547,0.00022321,2]
[394844062,1764007845912,-465.67133023,0.00022321,2]
[394844063,1764007845922,-874.8674498,0.00022321,2]
[394844064,1764007845932,-1000.0,0.00022321,2]
[394844065,1764007845941,-1000.0,0.00022321,2]
[394844067,1764007845951,-168.88708956,0.00022321,2]
[394844069,1764007845961,-216.50816527,0.00022441,2]
[394844070,1764007845971,-1294.15800677,0.00022868,2]
[394844071,1764007845980,-518.75704326,0.00022868,2]
[394844072,1764007845990,-501.91002815,0.00022868,2]
[394844073,1764007845999,-2591.95955296,0.00023478,2]
[394844074,1764007846008,-1000.0,0.00024216,2]
[394844075,1764007846017,-216.50816522,0.00024609,2]
[394844076,1764007846028,-1000.0,0.00024658,2]
[394844077,1764007846038,-4904.81116374,0.000247,2]
[394844078,1764007846048,-500.0,0.00024773,2]
[394844079,1764007846060,-498.95764127,0.00024773,2]
[394844080,1764007846069,-167.37962359,0.00024773,2]
[394844081,1764007846078,-206.31288244,0.0002479,2]
[394844082,1764007846089,-150.57,0.0002479,2]
[394844083,1764007846098,-176497.47310284,0.000248,3]
[394844084,1764007846112,-41627.40011516,0.000248,3]
[394844085,1764007846122,-500.0,0.00024899,2]
[394844086,1764007846131,-258506.86486,0.000249,3]
[394844087,1764007846142,-162.7349837,0.00024965,2]
[394844088,1764007846153,-342.98663566,0.00024988,2]
[394844089,1764007846163,-426.8933355,0.00025647,2]
[394844090,1764007846172,-2591.95955296,0.00026118,2]
[394844091,1764007846182,-1000.0,0.00026417,2]
[394844092,1764007846191,-284.23,0.00026676,2]
[394844093,1764007846200,-216.50816522,0.00026777,2]
[394844094,1764007846210,-500.0,0.00027397,5]
[394844095,1764007846220,-342.98663566,0.00028381,2]
[394844096,1764007846230,-254.51,0.000285,7]
[394844097,1764007846239,-2591.95955296,0.00028757,2]
[394844098,1764007846249,-216.50816522,0.00028945,2]
[394844099,1764007846258,-2438.67,0.00029297,2]
[394844100,1764007846268,-216.50816522,0.00031113,2]
[394844101,1764007846277,-2591.95955296,0.00031396,2]
[394844102,1764007846286,-342.98663566,0.00031774,2]
[394844103,1764007846295,-284.23,0.00033165,2]
[394844104,1764007846304,-216.50816522,0.00033281,2]
[394844105,1764007846313,-3558.0,0.00033971,5]
[394844106,1764007846323,-2591.95955296,0.00034035,2]
[394844107,1764007846333,-342.98663566,0.00035167,2]
[394844108,1764007846343,-216.50816522,0.00035449,2]
[394844109,1764007846353,-500.0,0.00035615,8]
[394844110,1764007846362,-500.0,0.00035615,2]
[394844111,1764007846372,-503.02297782,0.00035616,8]
[394844112,1764007846383,-500.0,0.00035616,8]
[394844113,1764007846393,-500.0,0.00035616,8]
[394844114,1764007846403,-500.0,0.00035616,8]
[394844115,1764007846412,-500.0,0.00035616,8]
[394844116,1764007846421,-500.0,0.00035616,8]
[394844117,1764007846431,-500.0,0.00035616,8]
[394844118,1764007846441,-500.0,0.00035616,8]
[394844119,1764007846450,-535.25892762,0.00035616,8]
[394844120,1764007846459,-500.0,0.00035616,8]
[394844121,1764007846468,-500.0,0.00035616,8]
[394844122,1764007846478,-500.0,0.00035616,8]
[394844123,1764007846487,-500.0,0.00035616,8]
[394844124,1764007846497,-500.0,0.00035616,8]
[394844125,1764007846506,-500.0,0.00035616,8]
[394844126,1764007846516,-500.0,0.00035616,8]
[394844127,1764007846524,-500.0,0.00035616,8]
[394844128,1764007846534,-196.92168843,0.00035616,8]
[394844129,1764007846543,-500.0,0.00035616,8]
[394844130,1764007846552,-500.0,0.00035616,8]
[394844131,1764007846562,-500.0,0.00035616,8]
[394844132,1764007846571,-500.0,0.00035616,8]
[394844134,1764007846580,-500.0,0.00035616,8]
[394844136,1764007846590,-500.0,0.00035616,8]
[394844138,1764007846599,-706.19,0.00035616,14]
[394844139,1764007846614,-500.0,0.00035616,8]
[394844140,1764007846623,-500.0,0.00035616,8]
[394844141,1764007846633,-500.0,0.00035616,8]
[394844142,1764007846643,-500.0,0.00035616,8]
[394844144,1764007846654,-500.0,0.00035616,8]
[394844146,1764007846664,-500.0,0.00035616,8]
[394844148,1764007846674,-500.0,0.00035616,8]
[394844150,1764007846683,-500.0,0.00035616,8]
[394844152,1764007846694,-500.0,0.00035616,8]
[394844153,1764007846703,-500.0,0.00035616,8]
[394844156,1764007846712,-500.0,0.00035616,8]
[394844158,1764007846721,-500.0,0.00035616,8]
[394844160,1764007846730,-500.0,0.00035616,8]
[394844162,1764007846739,-519.23,0.00035616,8]
[394844164,1764007846749,-500.0,0.00035616,8]
[394844166,1764007846758,-500.0,0.00035616,8]
[394844168,1764007846767,-500.0,0.00035616,8]
[394844169,1764007846777,-604.00124541,0.00035616,8]
[394844170,1764007846786,-167.09885858,0.00035873,5]
[394844171,1764007846796,-500.0,0.00035873,5]
[394844172,1764007846805,-501.60703041,0.00035873,5]
[394844173,1764007846816,-500.0,0.00035873,5]
[394844174,1764007846825,-500.0,0.00035873,5]
[394844175,1764007846834,-205.45472991,0.0003589,8]
[394844176,1764007846844,-393.5,0.0003589,8]
[394844177,1764007846854,-263.76911351,0.0003589,8]
[394844178,1764007846863,-370.04,0.0003589,8]
[394844179,1764007846873,-329.03,0.0003589,8]
[394844180,1764007846883,-706.19,0.0003589,14]
[394844181,1764007846893,-500.0,0.0003589,8]
[394844183,1764007846902,-501.53301196,0.0003589,8]
[394844185,1764007846912,-500.0,0.0003589,8]
[394844187,1764007846922,-500.0,0.0003589,8]
[394844188,1764007846932,-500.0,0.0003589,8]
[394844189,1764007846941,-583.92544564,0.0003589,8]
[394844190,1764007846950,-500.0,0.0003589,8]
[394844191,1764007846959,-500.0,0.0003589,8]
[394844192,1764007846969,-500.0,0.0003589,8]
[394844193,1764007846979,-1979.7769,0.00036064,2]
[394844195,1764007846988,-706.19,0.00036164,14]
[394844197,1764007846997,-501.26142825,0.00036164,8]
[394844199,1764007847006,-500.0,0.00036164,8]
[394844200,1764007847015,-500.0,0.00036164,8]
[394844202,1764007847024,-500.0,0.00036164,8]
[394844204,1764007847034,-187.71,0.00036164,8]
[394844206,1764007847044,-578.56,0.00036164,8]
[394844208,1764007847053,-500.0,0.00036421,5]
[394844210,1764007847062,-1001.07335338,0.00036421,5]
[394844212,1764007847072,-706.19,0.00036438,14]
[394844214,1764007847081,-500.0,0.00036438,8]
[394844216,1764007847090,-500.0,0.00036438,8]
[394844218,1764007847100,-500.0,0.00036438,8]
[394844220,1764007847109,-2591.95955296,0.00036675,2]
[394844222,1764007847118,-706.19,0.00036712,14]
[394844224,1764007847127,-500.0,0.00036712,8]
[394844226,1764007847136,-500.0,0.00036712,8]
[394844228,1764007847147,-706.19,0.00036986,14]
[394844230,1764007847157,-500.0,0.00036986,8]
[394844232,1764007847166,-388.5015382,0.00036986,8]
[394844234,1764007847176,-706.19,0.0003726,14]
[394844236,1764007847185,-500.0,0.0003726,8]
[394844238,1764007847195,-706.21,0.00037534,14]
[394844240,1764007847205,-159.26335216,0.00037534,8]
[394844242,1764007847214,-216.50816522,0.00037617,2]
[394844244,1764007847223,-150.0,0.00037825,7]
[394844246,1764007847233,-150.0,0.00037825,7]
[394844248,1764007847243,-150.0,0.00037825,7]
[394844250,1764007847252,-150.0,0.00037825,7]
[394844252,1764007847261,-238.95743324,0.00037825,7]
[394844254,1764007847270,-150.0,0.00037825,7]
[394844256,1764007847279,-150.0,0.00037825,7]
[394844258,1764007847289,-150.0,0.00037825,7]
[394844260,1764007847298,-150.0,0.00037825,7]
[394844262,1764007847307,-150.0,0.00037825,7]
[394844264,1764007847316,-150.0,0.00037825,7]
[394844266,1764007847325,-2019.0,0.00038157,2]
[394844268,1764007847334,-150.0,0.00038525,7]
[394844270,1764007847343,-342.98663566,0.0003856,2]
[394844272,1764007847351,-150.0,0.00038665,7]
[394844274,1764007847360,-958.57,0.00038678,2]
[394844276,1764007847369,-150.0,0.00038875,7]
[394844278,1764007847378,-500.0,0.00039077,8]
[394844280,1764007847387,-500.0,0.00039077,8]
[394844282,1764007847397,-500.0,0.00039077,8]
[394844283,1764007847406,-500.0,0.00039077,8]
[394844285,1764007847415,-500.0,0.00039077,8]
[394844287,1764007847424,-333.81416125,0.00039077,8]
[394844289,1764007847433,-500.0,0.00039077,8]
[394844291,1764007847442,-500.0,0.00039077,8]
[394844293,1764007847451,-500.0,0.00039077,8]
[394844295,1764007847460,-500.0,0.00039077,8]
[394844297,1764007847469,-500.0,0.00039077,8]
[394844299,1764007847478,-500.0,0.00039077,8]
[394844301,1764007847488,-500.0,0.00039077,8]
[394844303,1764007847497,-500.0,0.00039077,8]
[394844304,1764007847506,-503.79374108,0.00039077,8]
[394844305,1764007847515,-500.0,0.00039077,8]
[394844306,1764007847525,-443.11796522,0.00039077,8]
[394844307,1764007847535,-500.0,0.00039077,8]
[394844308,1764007847544,-500.0,0.00039077,8]
[394844309,1764007847553,-500.0,0.00039077,8]
[394844310,1764007847562,-500.0,0.00039077,8]
[394844311,1764007847572,-500.0,0.00039077,8]
[394844312,1764007847581,-403.10156864,0.00039077,8]
[394844313,1764007847591,-500.0,0.00039077,8]
[394844314,1764007847601,-500.0,0.00039077,8]
[394844315,1764007847611,-534.16852633,0.00039077,8]
[394844316,1764007847622,-500.0,0.00039077,8]
[394844317,1764007847631,-500.0,0.00039077,8]
[394844318,1764007847641,-500.0,0.00039077,8]
[394844319,1764007847650,-500.0,0.00039077,8]
[394844320,1764007847660,-506.55808762,0.00039077,8]
[394844321,1764007847670,-500.0,0.00039077,8]
[394844322,1764007847680,-500.0,0.00039077,8]
[394844323,1764007847691,-150.0,0.00039226,7]
[394844324,1764007847700,-150.0,0.00039226,7]
[394844325,1764007847709,-500.0,0.00039351,8]
[394844326,1764007847718,-500.0,0.00039351,8]
[394844327,1764007847727,-500.0,0.00039351,8]
[394844328,1764007847737,-500.0,0.00039351,8]
[394844329,1764007847746,-239.51,0.00039351,8]
[394844330,1764007847756,-390.32,0.00039351,8]
[394844331,1764007847766,-203.29,0.00039351,8]
[394844332,1764007847775,-217.41,0.00039351,8]
[394844333,1764007847784,-500.0,0.00039451,2]
[394844334,1764007847793,-150.0,0.00039506,7]
[394844335,1764007847803,-500.0,0.00039625,8]
[394844336,1764007847812,-500.0,0.00039625,8]
[394844337,1764007847822,-500.0,0.00039625,8]
[394844338,1764007847831,-284.23,0.00039654,2]
[394844339,1764007847840,-1000.0,0.000397,2]
[394844340,1764007847849,-216.50816522,0.00039785,2]
[394844341,1764007847859,-629.0,0.00039859,20]
[394844342,1764007847868,-500.0,0.00039899,8]
[394844343,1764007847878,-150.0,0.00039926,7]
[394844344,1764007847887,-150.0,0.00039926,7]
[394844345,1764007847898,-150.0,0.00039926,7]
[394844346,1764007847908,-150.0,0.00039926,7]
[394844347,1764007847917,-150.0,0.00039926,7]
[394844348,1764007847927,-500.0,0.00040173,8]
[394844349,1764007847936,-629.0,0.0004027,20]
[394844350,1764007847945,-150.0,0.00040346,7]
[394844351,1764007847955,-152.0,0.00040533,3]
[394844352,1764007847964,-150.0,0.00040626,7]
[394844353,1764007847973,-150.0,0.00040626,7]
[394844354,1764007847982,-629.0,0.00040681,20]
[394844355,1764007848001,-300.68869161,0.00040926,2]
[394844356,1764007848014,-150.0,0.00040977,7]
[394844357,1764007848022,-187.0242411,0.00040999,10]
[394844358,1764007848030,-300.0,0.00040999,10]
[394844359,1764007848039,-300.0,0.00040999,10]
[394844360,1764007848048,-2438.67,0.00041078,2]
[394844361,1764007848058,-629.0,0.00041092,20]
[394844362,1764007848067,-538.00774836,0.000411,2]
[394844363,1764007848076,-760.0,0.000411,2]
[394844364,1764007848086,-150.0,0.00041187,30]
[394844365,1764007848095,-771.33,0.00041205,30]
[394844366,1764007848104,-550.68,0.00041205,30]
[394844367,1764007848113,-169.64,0.00041205,30]
[394844368,1764007848123,-432.2,0.00041205,30]
[394844369,1764007848133,-834.62,0.00041205,30]
[394844370,1764007848145,-702.78,0.00041299,30]
[394844371,1764007848155,-333.52,0.00041299,30]
[394844372,1764007848164,-693.2,0.00041299,30]
[394844373,1764007848174,-1448.813,0.00041299,60]
[394844374,1764007848183,-150.0,0.00041327,30]
[394844375,1764007848193,-629.0,0.00041503,20]
[394844376,1764007848204,-68223.29213001,0.0004162,2]
[394844377,1764007848214,-751.37562293,0.00041708,2]
[394844378,1764007848224,-500.0,0.00041716,2]
[394844379,1764007848233,-155555.0,0.00041717,120]
[394844380,1764007848242,-500.0,0.0004181,8]
[394844381,1764007848252,-191.42061423,0.000419,120]
[394844382,1764007848261,-232.17091076,0.000419,120]
[394844383,1764007848270,-189.15865494,0.000419,120]
[394844384,1764007848279,-176.09584438,0.000419,120]
[394844385,1764007848289,-193.19426833,0.000419,120]
[394844386,1764007848298,-500.0,0.0004191,8]
[394844387,1764007848308,-490.68280988,0.0004191,8]
[394844388,1764007848318,-500.0,0.0004191,8]
[394844389,1764007848328,-301.34471525,0.0004191,8]
[394844390,1764007848337,-629.0,0.00041914,20]
[394844391,1764007848347,-620.0,0.00041936,15]
[394844392,1764007848361,-665.88,0.00041936,15]
[394844393,1764007848370,-199.07035695,0.00041936,15]
[394844394,1764007848380,-497.73015309,0.00041936,15]
[394844395,1764007848391,-578.20924308,0.00041936,15]
[394844396,1764007848400,-398.14729164,0.00041936,15]
[394844397,1764007848410,-500.0,0.00041936,15]
[394844398,1764007848420,-500.0,0.00041936,15]
[394844399,1764007848430,-500.0,0.00041936,15]
[394844400,1764007848439,-500.0,0.00041936,15]
[394844401,1764007848451,-500.0,0.00041936,15]
[394844402,1764007848461,-500.0,0.00041936,15]
[394844403,1764007848471,-500.0,0.00041936,15]
[394844404,1764007848482,-500.0,0.00041936,15]
[394844405,1764007848492,-250.0,0.00041936,15]
[394844406,1764007848503,-500.0,0.00041936,15]
[394844407,1764007848513,-500.0,0.00041936,15]
[394844408,1764007848523,-250.0,0.00041936,15]
[394844409,1764007848532,-500.0,0.00041936,15]
[394844410,1764007848541,-500.0,0.00041936,15]
[394844411,1764007848551,-250.0,0.00041936,15]
[394844412,1764007848564,-500.0,0.00041936,15]
[394844413,1764007848574,-500.0,0.00041936,15]
[394844414,1764007848584,-267.43291878,0.00041936,15]
[394844415,1764007848593,-500.0,0.00041936,15]
[394844416,1764007848603,-500.0,0.00041936,15]
[394844417,1764007848616,-500.0,0.00041936,15]
[394844418,1764007848626,-134.30178832,0.00041936,15]
[394844419,1764007848646,-365.69821168,0.00041936,15]
[394844420,1764007848662,-500.0,0.00041936,15]
[394844421,1764007848672,-500.0,0.00041936,15]
[394844422,1764007848682,-500.0,0.00041936,15]
[394844423,1764007848694,-500.0,0.00041936,15]
[394844424,1764007848704,-2000.0,0.00041936,15]
[394844425,1764007848714,-1958.29085139,0.00041936,15]
[394844426,1764007848723,-151.0,0.00041936,15]
[394844427,1764007848733,-151.0,0.00041936,15]
[394844428,1764007848742,-151.0,0.00041936,15]
[394844429,1764007848752,-151.0,0.00041936,15]
[394844430,1764007848766,-151.0,0.00041936,15]
[394844431,1764007848775,-151.0,0.00041936,15]
[394844432,1764007848785,-151.0,0.00041936,15]
[394844433,1764007848795,-151.0,0.00041936,15]
[394844434,1764007848805,-282.5437145,0.00041953,2]
[394844435,1764007848814,-342.98663566,0.00041953,28]
[394844436,1764007848825,-212.77387789,0.00041953,2]
[394844437,1764007848834,-216.50816522,0.00041953,15]
[394844438,1764007848843,-500.0,0.00042,120]
[394844439,1764007848853,-500.0,0.00042,120]
[394844440,1764007848862,-13.19854366,0.00042,120]
[394844441,1764007848899,-162.67764217,0.00024773,2]
[394844442,1764007848909,-151.0,0.00041936,15]
[394844443,1764007848919,-486.80145634,0.00042,120]
[394844444,1764007848928,-507.0,0.00042,120]
[394844445,1764007848940,-557.88008,0.0004202,12]
[394844446,1764007848949,-150.0,0.00042027,30]
[394844447,1764007848959,-295.15855584,0.00042027,30]
[394844448,1764007848973,-150.0,0.00042027,30]
[394844449,1764007848982,-150.0,0.00042027,30]
[394844450,1764007848992,-179.31223623,0.00042027,30]
[394844451,1764007849002,-150.0,0.00042027,30]
[394844452,1764007849011,-150.0,0.00042027,30]
[394844453,1764007849021,-150.00000001,0.00042027,30]
[394844454,1764007849030,-150.0,0.00042027,30]
[394844455,1764007849040,-150.0,0.00042027,30]
[394844456,1764007849050,-500.0,0.00042031,2]
[394844457,1764007849061,-2790.65310091,0.00042032,2]
[394844458,1764007849072,-4140.696,0.00042032,2]
[394844459,1764007849104,-159.86537393,0.00041953,2]
[394844460,1764007849114,-1673.90762607,0.00042032,2]
[394844461,1764007849129,-1484.41265922,0.00042032,2]
[394844462,1764007849139,-409243.0991705,0.00042032,2]
[394844463,1764007849149,-15342.2379834,0.00042032,2]
[394844464,1764007849159,-7541.7315322,0.00042032,2]
[394844465,1764007849173,-82430.917815,0.00042032,2]
[394844466,1764007849183,-3454.8664508,0.00042032,2]
[394844467,1764007849194,-21145.6896586,0.00042032,2]
[394844468,1764007849204,-458.98,0.00042035,2]
[394844469,1764007849215,-500.0,0.00042036,8]
[394844470,1764007849225,-634.82026114,0.00042036,8]
[394844471,1764007849235,-500.0,0.00042036,8]
[394844472,1764007849245,-500.0,0.00042036,8]
[394844473,1764007849255,-299.75222076,0.00042036,8]
[394844474,1764007849265,-500.0,0.00042036,8]
[394844475,1764007849275,-500.0,0.00042036,8]
[394844476,1764007849499,-251.91117321,0.00042036,8]
[394844477,1764007849510,-500.0,0.00042036,8]
[394844478,1764007849519,-500.0,0.00042036,7]
[394844479,1764007849529,-529.1,0.00042036,7]
[394844480,1764007849539,-500.0,0.00042036,8]
[394844481,1764007849549,-500.0,0.00042036,8]
[394844482,1764007849558,-328.04487043,0.00042036,8]
[394844483,1764007849569,-500.0,0.00042036,8]
[394844484,1764007849578,-500.0,0.00042036,8]
[394844485,1764007849588,-500.0,0.00042036,8]
[394844486,1764007849598,-500.0,0.00042036,8]
[394844487,1764007849609,-500.0,0.00042036,8]
[394844488,1764007849622,-500.0,0.00042036,8]
[394844489,1764007849650,-181.65845597,0.00042036,8]
[394844490,1764007849660,-500.0,0.00042036,8]
[394844491,1764007849670,-500.0,0.00042036,8]
[394844492,1764007849680,-293.42756697,0.00042036,8]
[394844493,1764007849690,-500.0,0.00042036,8]
[394844494,1764007849699,-199.0,0.00042036,7]
[394844495,1764007849710,-500.0,0.00042036,8]
[394844496,1764007849720,-500.0,0.00042036,8]
[394844497,1764007849730,-500.0,0.00042036,8]
[394844498,1764007849740,-500.0,0.00042036,8]
[394844499,1764007849750,-500.0,0.00042036,8]
[394844500,1764007849760,-501.82941216,0.00042036,8]
[394844501,1764007849770,-500.0,0.00042036,8]
[394844502,1764007849781,-500.0,0.00042036,8]
[394844503,1764007849790,-500.0,0.00042036,8]
[394844504,1764007849800,-500.0,0.00042036,8]
[394844505,1764007849811,-500.0,0.00042036,8]
[394844506,1764007849820,-500.0,0.00042036,8]
[394844507,1764007849830,-500.0,0.00042036,8]
[394844508,1764007849839,-500.0,0.00042036,8]
[394844509,1764007849849,-500.0,0.00042036,8]
[394844510,1764007849858,-500.0,0.00042036,8]
[394844511,1764007849868,-500.0,0.00042036,8]
[394844512,1764007849877,-500.0,0.00042036,8]
[394844513,1764007849887,-500.0,0.00042036,8]
[394844514,1764007849898,-500.0,0.00042036,8]
[394844515,1764007849907,-500.0,0.00042036,8]
[394844516,1764007849917,-500.0,0.00042036,8]
[394844517,1764007849925,-500.0,0.00042036,8]
[394844518,1764007849935,-500.0,0.00042036,8]
[394844519,1764007849945,-500.0,0.00042036,8]
[394844520,1764007849954,-500.0,0.00042036,8]
[394844521,1764007849964,-500.0,0.00042036,8]
[394844522,1764007849974,-500.0,0.00042036,8]
[394844523,1764007849984,-500.0,0.00042036,8]
[394844524,1764007849994,-500.0,0.00042036,8]
[394844525,1764007850004,-500.0,0.00042036,8]
[394844526,1764007850014,-500.0,0.00042036,8]
[394844527,1764007850023,-500.0,0.00042036,8]
[394844528,1764007850033,-500.0,0.00042036,8]
[394844529,1764007850042,-500.0,0.00042036,8]
[394844530,1764007850051,-500.0,0.00042036,8]
[394844531,1764007850060,-500.0,0.00042036,8]
[394844532,1764007850070,-500.0,0.00042036,8]
[394844533,1764007850080,-348.26705327,0.00042036,8]
[394844534,1764007850089,-500.0,0.00042036,8]
[394844535,1764007850098,-500.0,0.00042036,8]
[394844536,1764007850108,-500.0,0.00042036,8]
[394844537,1764007850117,-500.0,0.00042036,8]